Workbook

Sheet Bal Sheet Detail
A1: Nu Skin Tahiti
A2: Balance Sheet - Detailed
A3: As of 1943 | D3: 1943
B5: Acct | D5: Local | E5: As a %
A6: Account Description | B6: Code | D6: Currency | E6: of Total
A9: Cash | B9: 100 | D9: 543253.869 | E9: =+D9/D$96 -> 0.3973456012
A10: Other Cash/Cash Equivalents (list out above if over 10% of cash) | B10: 100-149 | E10: =+D10/D$96 -> 0
A11: Total Cash | D11: =SUM(D9:D10) -> 543253.869 | E11: =+D11/D$96 -> 0.3973456012
E12: =+D12/D$96 -> 0
A14: Receivable from Credit Card Company | B14: 150 | D14: 1897.62 | E14: =+D14/D$96 -> 0.001387953226
A15: Other Receivables/Deposits (list out above if over 10% of Accts Rec) | B15: 150-159 | E15: =+D15/D$96 -> 0
A16: Total Accounts Receivable | D16: =SUM(D14:D15) -> 1897.62 | E16: =+D16/D$96 -> 0.001387953226
A19: Nu Skin Product Inventory | B19: 160 | D19: 535581.411 | E19: =+D19/D$96 -> 0.3917338281
A20: Pharmanex Product Inventory | B20: 161 | E20: 0
A21: Big Planet Product Inventory | B21: 162 | E21: 0
A22: Nu Skin Sales Aid Inventory | B22: 165 | D22: 62779.872 | E22: 0.04591832182
A23: Pharmanex Sales Aid Inventory | B23: 166 | E23: 0
A24: Big Planet Sales Aid Inventory | B24: 167 | E24: 0
A25: Nu Skin Starter Kit Inventory | B25: 170 | D25: 2602.062 | E25: 0.00190319471
A26: Pharmanex Starter Kit Inventory | B26: 171 | E26: 0
A27: Big Planet Starter Kit Inventory | B27: 172 | E27: 0
A28: Govex Starter Kit Inventory
A29: Inventory Reserve | B29: 175 | E29: =+D29/D$96 -> 0
A30: Other Inventory (list out above if over 10% of Inventory) | B30: 160-179 | E30: =+D30/D$96 -> 0
A31: Total Inventory | D31: =SUM(D19:D30) -> 600963.345 | E31: =+D31/D$96 -> 0.4395553447
A34: Prepaid Rent | B34: 180 | D34: 34914.3 | E34: =+D34/D$96 -> 0.02553694381
A35: Prepaid Insurance | B35: 182 | D35: 2981.4 | E35: 0.002180649312
A36: Prepaid VAT | B36: 184 | E36: 0
A37: Deferred Tax Payment | B37: 185 | D37: 58317.6 | E37: 0.04265453622
A38: Cash Advances | B38: 186 | E38: 0
A39: Other Prepayments (list out above if over 10% of Prepaids) | B39: 180-199 | C39: major breakdown: | D39: 5240.517 | E39: 0.003833007912
A40: - Prepaid for certification
A41: - Prepaid local suppliers
A42: - Payrol taxes | C42: 17468.39
A43: Other Current Assets (list out above if over 10% of Prepaids) | B43: 200-215
A44: Refundable Rental Deposits - Current/Short Term | B44: 210 | E44: =+D44/D$96 -> 0
A45: Accrued Interest Income | B45: 212 | E45: =+D45/D$96 -> 0
A46: Prepaid Duty and Freight | B46: 215 | D46: 2240.373 | E46: =+D46/D$96 -> 0.001638648903
A47: Total Prepaid Assets | D47: =SUM(D34:D46) -> 103694.19 | E47: =+D47/D$96 -> 0.07584378616
A50: Int. Co. Rec. ASIA - NSE (Nu Skin Enterprises) | B50: 220 | E50: =+D50/D$96 -> 0
A51: Int. Co. Rec. ASIA - NSHK | B51: 221 | E51: 0
A52: Int. Co. Rec. ASIA - NSTW | B52: 222 | D52: 0 | E52: 0
A53: Int. Co. Rec. ASIA - NSJ | B53: 223 | D53: 0 | E53: 0
A54: Int. Co. Rec. ASIA - NS Macau | B54: 224 | E54: 0
A55: Int. Co. Rec. ASIA - NSK | B55: 225 | D55: 0 | E55: 0
A56: Int. Co. Rec. ASIA - NSTHAI | B56: 226 | D56: 0 | E56: 0
A57: Int. Co. Rec. ASIA - NSPH | B57: 227 | D57: 0 | E57: 0
A58: Int. Co. Rec. ASIA - NSPH Regional | B58: 228 | D58: 0 | E58: 0
A59: Int. Co. Rec. ASIA - NS CHINA | B59: 229 | E59: 0
A60: Int. Co. Rec. ASIA - NS CINOGEN | B60: 230 | D60: 0 | E60: 0
A61: Int. Co. Rec. ASIA - NS INDONESIA | B61: 231 | D61: 0 | E61: 0
A62: Int. Co. Rec. ASIA - NS Singapore | B62: 248 | D62: 0 | E62: 0
A63: Int. Co. Rec. ASIA - NS Malaysia | B63: 249 | D63: 0 | E63: 0
A64: Int. Co. Rec. ASIA - NS Brunie | B64: 250 | D64: 0 | E64: 0
A65: Int. Co. Rec. ASIA - NS AUS | B65: 245 | D65: 0 | E65: 0
A66: Int. Co. Rec. ASIA - NS NZ | B66: 247 | D66: 0 | E66: 0
A67: Int. Co. Rec. ACQ ENTITIES - NSIMG | B67: 285 | E67: 0
A68: Int. Co. Rec. ACQ ENTITIES - Loan to NSI | E68: 0
A69: Int. Co. Rec. ACQ ENTITIES - NSI Dist. Comm. | B69: 296 | E69: 0
A70: Int. Co. Rec. ACQ ENTITIES - NSI License Fees | B70: 297 | E70: 0
A71: Int. Co. Rec. ACQ ENTITIES - NSEP Other (list if over 10%) | B71: 298 | D71: 41366.46 | E71: 0.03025616909
A72: Int. Co. Rec. ACQ ENTITIES - NSI Other (list if over 10%) | B72: 299 | E72: 0
A73: Total Intercompany Receivable | D73: =SUM(D50:D72) -> 41366.46 | E73: 0.03025616909
A76: Related Party Receivable - Shareholders | B76: 244 | E76: =+D76/D$96 -> 0
A77: Related Party Receivable - Other (list out if over 10% of Rel Prty) | B77: 245 | E77: =+D77/D$96 -> 0
A78: Total Related Party Receivables | D78: =SUM(D76:D77) -> 0 | E78: =+D78/D$96 -> 0
A81: Fixed Assets - Furniture and Equipment | B81: 260 | D81: 21798.009 | E81: =+D81/D$96 -> 0.01594345385
A82: Fixed Assets - Leasehold Improvements | B82: 265 | D82: 8540.55 | E82: 0.006246711102
A83: Fixed Assets - Computers and Software | B83: 270 | D83: 27749.094 | E83: 0.02029618392
A84: Fixed Assets - Scanner | B84: 271 | D84: 128094.972 | E84: 0.09369095476
A85: Fixed Assets - Construction in Progress Vechicl | B85: 275 | E85: 0
A86: Accumulated Depreciation | B86: 280 | D86: -110150.652 | E86: -0.080566158
A87: Total Fixed Assets | D87: =SUM(D81:D86) -> 76031.973 | E87: 0.05561114563
A90: Asia Distribution Rights | B90: 301 | D90: 0 | E90: =+D90/D$96 -> 0
A91: Receivables from Developing Markets | B91: 302-305 | E91: =+D91/D$96 -> 0
A92: Key Money/Lease Deposits | B92: 306-309 | E92: =+D92/D$96 -> 0
A93: Other Long-term Assets (list out above if over 10% of LT assets) | B93: 310-317 | D93: 0 | E93: =+D93/D$96 -> 0
A94: Total Other Long-term Assets | D94: =SUM(D90:D93) -> 0 | E94: =+D94/D$96 -> 0
A96: Total Assets | D96: =+D11+D16+D31+D47+D73+D78+D87+D94 -> 1367207.457 | E96: =+D96/D$96 -> 1
A99: Accounts Payable - Trade | B99: 341 | E99: =+D99/D$96 -> 0
A100: Accounts Payable - NonTrade | B100: 342 | E100: =+D100/D$96 -> 0
A101: Accounts Payable - Other (list out above if over 10% of Accts Pay) | B101: 343 | E101: =+D101/D$96 -> 0
A102: Total Accounts Payable | D102: =SUM(D99:D101) -> 0 | E102: =+D102/D$96 -> 0
A105: Accrued Payroll and Taxes | B105: 350 | E105: =+D105/D$96 -> 0
A106: Accrued Bonuses | E106: 0
A107: Accrued Vacation / Sick Leave | B107: 355 | E107: 0
A108: Accrued Income Taxes | B108: 360 | E108: 0
A109: Accrued Customs Duties/Border Taxes | B109: 365 | E109: 0
A110: Accrued Property/Consumption/Withholding Taxes | B110: 370 | E110: =+D110/D$96 -> 0
A111: Deferred Director's Bonus | B111: 375 | E111: 0
A112: Reserve for Retirement Benefits | B112: 380 | E112: 0
A113: Deferred Income | B113: 385 | E113: 0
A114: Other Current Liabilities (list out above if over 10% of Accd Liab) | B114: 390 | C114: major breakdown : | E114: =+D114/D$96 -> 0
E115: 0
E116: 0
E117: 0
A118: Short-term Line of Credit - Bank Loan | B118: 395 | E118: 0
A119: Reserve for Sales Returns | B119: 395 | E119: 0
A120: Reserve for Lost or damaged Scanners | B120: 395 | E120: 0
A121: Other Reserves: (please list each and describe) | E121: 0
A122: Accrued Commissions - Comp Plan | B122: 470 | E122: 0
A123: Accrued Commissions - GRP | B123: 470 | E123: 0
A124: Accrued Commissions - Local | B124: 470 | D124: 58838.673 | E124: 0.04303565834
A125: Advances Received from Distributors | B125: 480 | D125: 23519.469 | E125: 0.0172025605
A126: Total Accrued Liabilities | D126: =SUM(D105:D125) -> 82358.142 | E126: 0.06023821884
A129: Int. Co. Pay. ASIA - NSE (Nu Skin Enterprises) | B129: 400 | E129: =+D129/D$96 -> 0
A130: Int. Co. Pay. ASIA - NSHK | B130: 401 | E130: 0
A131: Int. Co. Pay. ASIA - NSK | D131: 0 | E131: 0
A132: Int. Co. Pay. ASIA - NSTHAI | D132: 0 | E132: 0
A133: Int. Co.Pay. ASIA - NS Singapore | E133: 0
A134: Int. Co. Pay. ASIA - NS Malaysia | E134: 0
A135: Int. Co. Pay. ASIA - NS PH | E135: 0
A136: Int. Co. Pay. ASIA - NS NZ | E136: 0
A137: Int. Co. Pay. ASIA - NSTW | E137: 0
A138: Int. Co. Pay. ASIA - NS AU | B138: 319 | E138: 0
A139: Int. Co. Pay. ASIA - NSJ | E139: 0
A140: Intercompany Loan Payable - NSJ | B140: 420 | E140: 0
A141: Intercompany Loan Payable - NS Korea | B141: 421 | E141: 0
A142: Int. Co. Pay. Russia - NSI (IC Debit Notes) | E142: 0
A143: Intercompany Loan - Interest Payable - NSI | B143: 426 | E143: 0
A144: Dividends Payable - NSE Group | B144: 430 | E144: 0
A145: Int. Co. Pay. ACQ ENTITIES - NSIMG | B145: 435 | D145: 95099.763 | E145: 0.06955766845
A146: Int. Co. Pay. ACQ ENTITIES - NSI Dist. Comm. | B146: 446 | E146: 0
A147: Int. Co. Pay. ACQ ENTITIES - NSI License Fees | B147: 447 | E147: 0
A148: Int. Co. Pay. ACQ ENTITIES - NSEP Royalties (NSI as at Dec 04) | B148: 448 | E148: 0
A149: Int. Co. Pay. ASIA - NSEP INC Purchase | B149: 448 | D149: 1086151.692 | E149: 0.794430784
A150: Int. Co. Pay. ACQ ENTITIES - NSEP Other (list if over 10%) | B150: 449 | E150: 0
A151: Total Intercompany Payable | D151: =SUM(D129:D150) -> 1181251.455 | E151: 0.8639884525
A154: Related Party Payable - Shareholders | B154: 454 | E154: =+D154/D$96 -> 0
A155: Related Party Payable - Other (list out above if over 10% of Rel Prty) | B155: 455 | E155: =+D155/D$96 -> 0
A156: Total Related Party Payables | D156: =SUM(D154:D155) -> 0 | E156: =+D156/D$96 -> 0
A159: Long-term Line of Credit - Bank Loan | B159: 490 | E159: =+D159/D$96 -> 0
A160: Other long-term Liabilities (list out above if over 10% of other LT liab) | B160: 491 | E160: =+D160/D$96 -> 0
A161: Total Other Long-term Liabilities | D161: =SUM(D159:D160) -> 0 | E161: =+D161/D$96 -> 0
A164: Capital Stock | B164: 500 | D164: 19533 | E164: =+D164/D$96 -> 0.01428678574
A166: Additional Paid-in Capital/Amount due from HO | B166: 520 | E166: =+D166/D$96 -> 0
A168: Retained Earnings | B168: 530 | D168: 161803.764 | E168: =+D168/D$96 -> 0.1183461684
A169: Current Earnings | B169: 540 | D169: -77739 | E169: -0.05685969573
A170: Translation Adjustment | B170: 550 | E170: 0
A171: Dividends | B171: 560 | E171: 0
A172: Legal Reserve | B172: 570 | E172: 0
A173: Other (list out above if over 10% of retained earnings) | B173: 571-599 | E173: 0
A174: Total Retained Earnings | D174: =SUM(D168:D173) -> 84064.764 | E174: 0.06148647271
A176: Total Liabilities and Equity | D176: =+D102+D126+D151+D156+D161+D164+D166+D174 -> 1367207.361 | E176: =+D176/D$96 -> 0.9999999298
D178: =+D96-D176 -> 0.09599996684 | E178: 7.021609361e-08
